Workbook

Sheet 17,11,11
A1: наименование | B1: кол-во | C1: цена $ | D1: увезли | E1: цена р | F1: ввод | G1: продано | K1: прибыль | L1: продажа | M1: остаток | O1: привоз | P1: стало
A2: Должны за: | C2: приход | E2: приход | F2: прод. | G2: на сумму | K2: пополам
A3: ввод курса $---------> | B3: 29.07
A4: kobalt сегмент
A5: 115х22 сегм Kobalt | B5: 1 | C5: 1 | E5: =C5*$B$3 -> 29.07 | F5: 1 | G5: =F5*C5 -> 1 | K5: =F5*(L5-E5)/2 -> 45.265 | L5: 119.6 | M5: =B5-F5 -> 0 | N5: =B5*C5 -> 1 | P5: =M5+O5 -> 0
A6: 125х22 сегм Kobalt | B6: 1 | C6: 1 | E6: =C6*$B$3 -> 29.07 | F6: 2 | G6: 2 | K6: =F6*(L6-E6)/2 -> 103.18 | L6: 132.25 | M6: =B6-F6 -> -1 | N6: =B6*C6 -> 1 | P6: =M6+O6 -> -1
A7: 150х22 сегм Kobalt | B7: 1 | C7: 1 | E7: 29.07 | F7: 3 | G7: 3 | K7: =F7*(L7-E7)/2 -> 284.145 | L7: 218.5 | M7: -2 | N7: 1 | P7: -2
A8: 180х22 сегм kobalt | B8: 1 | C8: 1 | E8: 29.07 | F8: 4 | G8: 4 | K8: =F8*(L8-E8)/2 -> 404.16 | L8: 231.15 | M8: -3 | N8: 1 | P8: -3
A9: 230х22 сегм Kobalt | B9: 1 | C9: 1 | E9: 29.07 | F9: 5 | G9: 5 | K9: =F9*(L9-E9)/2 -> 588.575 | L9: 264.5 | M9: -4 | N9: 1 | P9: -4
A10: kobalt турбо | B10: 0 | C10: 1 | E10: 29.07 | F10: 6 | G10: 6 | L10: 0 | M10: -6 | N10: 0 | P10: -6
A11: 115х22 турбо Kobalt | B11: 1 | C11: 1 | E11: 29.07 | F11: 7 | G11: 7 | K11: =F11*(L11-E11)/2 -> 453.705 | L11: 158.7 | M11: -6 | N11: 1 | P11: -6
A12: 125х22 турбо Kobalt | B12: 1 | C12: 1 | E12: 29.07 | F12: 8 | G12: 8 | K12: =F12*(L12-E12)/2 -> 624.32 | L12: 185.15 | M12: -7 | N12: 1 | P12: -7
A13: 150х22 турбо Kobalt | B13: 1 | C13: 1 | E13: 29.07 | F13: 9 | G13: 9 | K13: =F13*(L13-E13)/2 -> 1178.46 | L13: 290.95 | M13: -8 | N13: 1 | P13: -8
A14: 180х22 турбо Kobalt | B14: 1 | C14: 1 | E14: 29.07 | F14: 10 | G14: 10 | K14: =F14*(L14-E14)/2 -> 1775.15 | L14: 384.1 | M14: -9 | N14: 1 | P14: -9
A15: 230х22 турбо Kobalt | B15: 1 | C15: 1 | E15: 29.07 | F15: 11 | G15: 11 | K15: =F15*(L15-E15)/2 -> 2098.14 | L15: 410.55 | M15: -10 | N15: 1 | P15: -10
A16: Kobalt супертурбо | B16: 0 | C16: 1 | E16: 29.07 | F16: 12 | G16: 12 | L16: 0 | M16: -12 | N16: 0 | P16: -12
A17: 230х22 супертурбо Kobalt | B17: 1 | C17: 1 | E17: 29.07 | F17: 13 | G17: 13 | K17: =F17*(L17-E17)/2 -> 2793.57 | L17: 458.85 | M17: -12 | N17: 1 | P17: -12
A18: Kobalt гладкий | B18: 0 | C18: 1 | E18: =C18*$B$3 -> 29.07 | F18: 14 | G18: 14 | L18: 0 | M18: -14 | N18: =B18*C18 -> 0 | P18: -14
A19: 230х22 гладкий Kobalt | B19: 1 | C19: 1 | E19: 29.07 | F19: 15 | G19: 15 | K19: =F19*(L19-E19)/2 -> 1670.85 | L19: 251.85 | M19: -14 | N19: =B19*C19 -> 1 | P19: -14
A20: Universal сегментные | B20: 0 | C20: 1 | E20: 29.07 | F20: 16 | G20: 16 | L20: 0 | M20: -16 | N20: 0 | P20: -16
A21: 115х22 | B21: 0 | C21: 1 | E21: 29.07 | F21: 17 | G21: 17 | K21: =F21*(L21-E21)/2 -> 143.905 | L21: 46 | M21: -17 | N21: 0 | P21: -17
A22: 125х22 | B22: 0 | C22: 1 | E22: 29.07 | F22: 18 | G22: 18 | K22: =F22*(L22-E22)/2 -> 214.47 | L22: 52.9 | M22: -18 | N22: 0 | P22: -18
A23: 150х22 | B23: 0 | C23: 1 | E23: 29.07 | F23: 19 | G23: 19 | K23: =F23*(L23-E23)/2 -> 608.76 | L23: 93.15 | M23: -19 | N23: 0 | P23: -19
A24: 180х22 | B24: 0 | C24: 1 | E24: 29.07 | F24: 20 | G24: 20 | K24: =F24*(L24-E24)/2 -> 698.3 | L24: 98.9 | M24: -20 | N24: 0 | P24: -20
A25: 230х22 | B25: 0 | C25: 1 | E25: 29.07 | F25: 21 | G25: 21 | K25: =F25*(L25-E25)/2 -> 878.115 | L25: 112.7 | M25: -21 | N25: 0 | P25: -21
A26: Universal турбо | B26: 0 | C26: 1 | E26: 29.07 | F26: 22 | G26: 22 | L26: 0 | M26: -22 | N26: 0 | P26: -22
A27: 115х22 | B27: 0 | C27: 1 | E27: 29.07 | F27: 23 | G27: 23 | K27: =F27*(L27-E27)/2 -> 432.745 | L27: 66.7 | M27: -23 | N27: 0 | P27: -23
A28: 125х22 | B28: 0 | C28: 1 | E28: 29.07 | F28: 24 | G28: 24 | K28: =F28*(L28-E28)/2 -> 603.36 | L28: 79.35 | M28: -24 | N28: 0 | P28: -24
A29: 150х22 | B29: 1 | C29: 1 | E29: 29.07 | F29: 25 | G29: 25 | K29: =F29*(L29-E29)/2 -> 1203.5 | L29: 125.35 | M29: -24 | N29: 1 | P29: -24
A30: 180х22 | B30: 1 | C30: 1 | E30: 29.07 | F30: 26 | G30: 26 | K30: =F30*(L30-E30)/2 -> 1774.89 | L30: 165.6 | M30: -25 | N30: 1 | P30: -25
A31: 230х22 | B31: 0 | C31: 1 | E31: 29.07 | F31: 27 | G31: 27 | K31: =F31*(L31-E31)/2 -> 2107.08 | L31: 185.15 | M31: -27 | N31: 0 | P31: -27
A32: Universal супертурбо | B32: 0 | C32: 1 | E32: 29.07 | F32: 28 | G32: 28 | L32: 0 | M32: -28 | N32: 0 | P32: -28
A33: 115х22 | B33: 1 | C33: 1 | E33: 29.07 | F33: 29 | G33: 29 | K33: =F33*(L33-E33)/2 -> 629.01 | L33: 72.45 | M33: -28 | N33: 1 | P33: -28
A34: 125х22 | B34: 0 | C34: 1 | E34: 29.07 | F34: 30 | G34: 30 | K34: =F34*(L34-E34)/2 -> 961.2 | L34: 93.15 | M34: -30 | N34: 0 | P34: -30
A35: 150х22 | B35: 1 | C35: 1 | E35: 29.07 | F35: 31 | G35: 31 | K35: =F35*(L35-E35)/2 -> 1706.24 | L35: 139.15 | M35: -30 | N35: 1 | P35: -30
A36: 180х22 | B36: 0 | C36: 1 | E36: 29.07 | F36: 32 | G36: 32 | K36: =F36*(L36-E36)/2 -> 2386.88 | L36: 178.25 | M36: -32 | N36: 0 | P36: -32
A37: 230х22 | B37: 0 | C37: 1 | E37: 29.07 | F37: 33 | G37: 33 | K37: =F37*(L37-E37)/2 -> 2897.895 | L37: 204.7 | M37: -33 | N37: 0 | P37: -33
A38: Rusland сегментные | B38: 0 | C38: 1 | E38: 29.07 | F38: 34 | G38: 34 | L38: 0 | M38: -34 | N38: 0 | P38: -34
A39: 115х22 | B39: 1 | C39: 1 | E39: 29.07 | F39: 35 | G39: 35 | K39: =F39*(L39-E39)/2 -> 819.525 | L39: 75.9 | M39: -34 | N39: 1 | P39: -34
A40: 125х22 | B40: 1 | C40: 1 | E40: 29.07 | F40: 36 | G40: 36 | K40: =F40*(L40-E40)/2 -> 1049.94 | L40: 87.4 | M40: -35 | N40: 1 | P40: -35
A41: 150х22 | B41: 1 | C41: 1 | E41: 29.07 | F41: 37 | G41: 37 | K41: =F41*(L41-E41)/2 -> 2227.955 | L41: 149.5 | M41: -36 | N41: 1 | P41: -36
A42: 180х22 | B42: 1 | C42: 1 | E42: 29.07 | F42: 38 | G42: 38 | K42: =F42*(L42-E42)/2 -> 2484.82 | L42: 159.85 | M42: -37 | N42: 1 | P42: -37
A43: 230х22 | B43: 1 | C43: 1 | E43: 29.07 | F43: 39 | G43: 39 | K43: =F43*(L43-E43)/2 -> 3222.96 | L43: 194.35 | M43: -38 | N43: 1 | P43: -38
A44: Rusland турбо | B44: 0 | C44: 1 | E44: 29.07 | F44: 40 | G44: 40 | L44: 0 | M44: -40 | N44: 0 | P44: -40
A45: 115х22 | B45: 2 | C45: 1 | E45: 29.07 | F45: 41 | G45: 41 | K45: =F45*(L45-E45)/2 -> 1714.415 | L45: 112.7 | M45: -39 | N45: 2 | P45: -39
A46: 125х22 | B46: 2 | C46: 1 | E46: 29.07 | F46: 42 | G46: 42 | K46: =F46*(L46-E46)/2 -> 2142.63 | L46: 131.1 | M46: -40 | N46: 2 | P46: -40
A47: 150х22 | B47: 2 | C47: 1 | E47: 29.07 | F47: 43 | G47: 43 | K47: =F47*(L47-E47)/2 -> 3751.32 | L47: 203.55 | M47: -41 | N47: 2 | P47: -41
A48: 180х22 | B48: 2 | C48: 1 | E48: 29.07 | F48: 44 | G48: 44 | K48: =F48*(L48-E48)/2 -> 5432.46 | L48: 276 | M48: -42 | N48: 2 | P48: -42
A49: 230х22 | B49: 2 | C49: 1 | E49: 29.07 | F49: 45 | G49: 45 | K49: =F49*(L49-E49)/2 -> 5892.3 | L49: 290.95 | M49: -43 | N49: 2 | P49: -43
A50: Rusland супертурбо | B50: 0 | C50: 1 | E50: 29.07 | F50: 46 | G50: 46 | L50: 0 | M50: -46 | N50: 0 | P50: -46
A51: 115х22 | B51: 2 | C51: 1 | E51: 29.07 | F51: 47 | G51: 47 | K51: =F51*(L51-E51)/2 -> 2235.555 | L51: 124.2 | M51: -45 | N51: 2 | P51: -45
A52: 125х22 | B52: 2 | C52: 1 | E52: 29.07 | F52: 48 | G52: 48 | K52: =F52*(L52-E52)/2 -> 2807.52 | L52: 146.05 | M52: -46 | N52: 2 | P52: -46
A53: 150х22 | B53: 2 | C53: 1 | E53: 29.07 | F53: 49 | G53: 49 | K53: =F53*(L53-E53)/2 -> 4979.135 | L53: 232.3 | M53: -47 | N53: 2 | P53: -47
A54: 180х22 | B54: 2 | C54: 1 | E54: 29.07 | F54: 50 | G54: 50 | K54: =F54*(L54-E54)/2 -> 6920.75 | L54: 305.9 | M54: -48 | N54: 2 | P54: -48
A55: 230х22 | B55: 2 | C55: 1 | E55: 29.07 | F55: 51 | G55: 51 | K55: =F55*(L55-E55)/2 -> 7264.44 | L55: 313.95 | M55: -49 | N55: 2 | P55: -49
A56: Rusland гладкие | B56: 0 | C56: 1 | E56: 29.07 | F56: 52 | G56: 52 | L56: 0 | M56: -52 | N56: 0 | P56: -52
A57: 115х22 | B57: 0 | C57: 1 | E57: 29.07 | F57: 53 | G57: 53 | K57: =F57*(L57-E57)/2 -> 997.195 | L57: 66.7 | M57: -53 | N57: 0 | P57: -53
A58: 125х22 | B58: 2 | C58: 1 | E58: 29.07 | F58: 54 | G58: 54 | K58: 1450.71 | L58: 82.8 | M58: -52 | N58: 2 | P58: -52
A59: 150х22 | B59: 2 | C59: 1 | E59: 29.07 | F59: 55 | G59: 55 | K59: 2805.825 | L59: 131.1 | M59: -53 | N59: 2 | P59: -53
A60: 150х25.4 | B60: 2 | C60: 1 | E60: 29.07 | F60: 56 | G60: 56 | K60: 2856.84 | L60: 131.1 | M60: -54 | N60: =B60*C60 -> 2 | P60: -54
A61: 180х22 | B61: 0 | C61: 1 | E61: 29.07 | F61: 57 | G61: 57 | K61: 3137.28 | L61: 139.15 | M61: -57 | N61: 0 | P61: -57
A62: 180х25.4 | B62: 2 | C62: 1 | E62: 29.07 | F62: 58 | G62: 58 | K62: 3192.32 | L62: 139.15 | M62: -56 | N62: =B62*C62 -> 2 | P62: -56
A63: 200х25.4 | B63: 2 | C63: 1 | E63: 29.07 | F63: 59 | G63: 59 | K63: 3450.91 | L63: 146.05 | M63: -57 | N63: =B63*C63 -> 2 | P63: -57
A64: 230х22 | B64: 2 | C64: 1 | E64: 29.07 | F64: 60 | G64: 60 | K64: 3716.4 | L64: 152.95 | M64: -58 | N64: 2 | P64: -58
A65: Greapo сегментные | B65: 0 | C65: 1 | E65: 29.07 | F65: 61 | G65: 61 | L65: 0 | M65: -61 | N65: 0 | P65: -61
A66: 115х22 | B66: 0 | C66: 1 | E66: 29.07 | F66: 62 | G66: 62 | K66: =F66*(L66-E66)/2 -> 132.68 | L66: 33.35 | M66: -62 | N66: 0 | P66: -62
A67: 125х22 | B67: 0 | C67: 1 | E67: 29.07 | F67: 63 | G67: 63 | K67: =F67*(L67-E67)/2 -> 533.295 | L67: 46 | M67: -63 | N67: 0 | P67: -63
A68: 150х22 | B68: 0 | C68: 1 | E68: 29.07 | F68: 64 | G68: 64 | K68: =F68*(L68-E68)/2 -> 1204.16 | L68: 66.7 | M68: -64 | N68: 0 | P68: -64
A69: 180х22 | B69: 0 | C69: 1 | E69: 29.07 | F69: 65 | G69: =F69*C69 -> 65 | K69: =F69*(L69-E69)/2 -> 1858.35 | L69: 86.25 | M69: -65 | N69: 0 | P69: -65
A70: 230х22 | B70: 0 | C70: 1 | E70: =C70*$B$3 -> 29.07 | F70: 66 | G70: 66 | K70: =F70*(L70-E70)/2 -> 2114.64 | L70: 93.15 | M70: =B70-F70 -> -66 | N70: 0 | P70: =M70+O70 -> -66
A71: Greapo турбо | B71: 0 | C71: 1 | E71: 29.07 | F71: 67 | G71: 67 | L71: 0 | M71: -67 | N71: 0 | P71: -67
A72: 115х22 | B72: 2 | C72: 1 | E72: 29.07 | F72: 68 | G72: 68 | K72: =F72*(L72-E72)/2 -> 810.22 | L72: 52.9 | M72: -66 | N72: 2 | P72: -66
A73: 125х22 | B73: 2 | C73: 1 | E73: 29.07 | F73: 69 | G73: 69 | K73: =F73*(L73-E73)/2 -> 1060.185 | L73: 59.8 | M73: -67 | N73: 2 | P73: -67
A74: 150х22 | B74: 0 | C74: 1 | E74: 29.07 | F74: 70 | G74: 70 | K74: =F74*(L74-E74)/2 -> 2242.8 | L74: 93.15 | M74: -70 | N74: =B74*C74 -> 0 | P74: -70
A75: 180х22 | B75: 0 | C75: 1 | E75: 29.07 | F75: 71 | G75: 71 | K75: =F75*(L75-E75)/2 -> 3417.94 | L75: 125.35 | M75: -71 | N75: 0 | P75: -71
A76: 230х22 | B76: 0 | C76: 1 | E76: 29.07 | F76: 72 | G76: 72 | K76: =F76*(L76-E76)/2 -> 4211.28 | L76: 146.05 | M76: -72 | N76: 0 | P76: -72
A77: Greapo супертурбо | B77: 0 | C77: 1 | E77: 29.07 | F77: 73 | G77: 73 | L77: 0 | M77: -73 | N77: 0 | P77: -73
A78: 115х22 | B78: 0 | C78: 1 | E78: 29.07 | F78: 74 | G78: 74 | K78: =F78*(L78-E78)/2 -> 1137.01 | L78: 59.8 | M78: -74 | N78: 0 | P78: -74
A79: 125х22 | B79: 0 | C79: 1 | E79: 29.07 | F79: 75 | G79: 75 | K79: =F79*(L79-E79)/2 -> 1411.125 | L79: 66.7 | M79: -75 | N79: 0 | P79: -75
A80: 230х22 | B80: 0 | C80: 1 | E80: 29.07 | F80: 76 | G80: 76 | K80: =F80*(L80-E80)/2 -> 4925.94 | L80: 158.7 | M80: -76 | N80: 0 | P80: -76
A81: Diamant сегментные | B81: 0 | C81: 1 | E81: 29.07 | F81: 77 | G81: 77 | L81: 0 | M81: -77 | N81: 0 | P81: -77
A82: 115х22 | B82: 2 | C82: 1 | E82: 29.07 | F82: 78 | G82: 78 | K82: =F82*(L82-E82)/2 -> 1826.37 | L82: 75.9 | M82: -76 | N82: 2 | P82: -76
A83: 125х22 | B83: 0 | C83: 1 | E83: 29.07 | F83: 79 | G83: 79 | K83: =F83*(L83-E83)/2 -> 2304.035 | L83: 87.4 | M83: -79 | N83: 0 | P83: -79
A84: 150х22 | B84: 0 | C84: 1 | E84: 29.07 | F84: 80 | G84: 80 | K84: =F84*(L84-E84)/2 -> 4817.2 | L84: 149.5 | M84: -80 | N84: 0 | P84: -80
A85: 180х22 | B85: 3 | C85: 1 | E85: 29.07 | F85: 81 | G85: 81 | K85: =F85*(L85-E85)/2 -> 5296.59 | L85: 159.85 | M85: -78 | N85: 3 | P85: -78
A86: 230х22 | B86: 3 | C86: 1 | E86: 29.07 | F86: 82 | G86: 82 | K86: =F86*(L86-E86)/2 -> 6776.48 | L86: 194.35 | M86: -79 | N86: 3 | P86: -79
A87: Diamant турбо | B87: 0 | C87: 1 | E87: 29.07 | F87: 83 | G87: 83 | L87: 0 | M87: -83 | N87: 0 | P87: -83
A88: 115х22 | B88: 3 | C88: 1 | E88: 29.07 | F88: 84 | G88: 84 | K88: =F88*(L88-E88)/2 -> 3512.46 | L88: 112.7 | M88: -81 | N88: 3 | P88: -81
A89: 125х22 | B89: 3 | C89: 1 | E89: 29.07 | F89: 85 | G89: 85 | K89: =F89*(L89-E89)/2 -> 4336.275 | L89: 131.1 | M89: -82 | N89: 3 | P89: -82
A90: 150х22 | B90: 3 | C90: 1 | E90: 29.07 | F90: 86 | G90: 86 | K90: =F90*(L90-E90)/2 -> 7502.64 | L90: 203.55 | M90: -83 | N90: 3 | P90: -83
A91: 180х22 | B91: 3 | C91: 1 | E91: 29.07 | F91: 87 | G91: 87 | K91: =F91*(L91-E91)/2 -> 10741.455 | L91: 276 | M91: -84 | N91: 3 | P91: -84
A92: 230х22 | B92: 3 | C92: 1 | E92: 29.07 | F92: 88 | G92: 88 | K92: =F92*(L92-E92)/2 -> 11522.72 | L92: 290.95 | M92: -85 | N92: 3 | P92: -85
A93: Diamant супертурбо | B93: 0 | C93: 1 | E93: 29.07 | F93: 89 | G93: 89 | L93: 0 | M93: -89 | N93: 0 | P93: -89
A94: 115х22 | B94: 3 | C94: 1 | E94: 29.07 | F94: 90 | G94: 90 | K94: =F94*(L94-E94)/2 -> 4280.85 | L94: 124.2 | M94: -87 | N94: 3 | P94: -87
A95: 125х22 | B95: 3 | C95: 1 | E95: 29.07 | F95: 91 | G95: 91 | K95: =F95*(L95-E95)/2 -> 5322.59 | L95: 146.05 | M95: -88 | N95: 3 | P95: -88
A96: 150х22 | B96: 3 | C96: 1 | E96: 29.07 | F96: 92 | G96: 92 | K96: =F96*(L96-E96)/2 -> 9348.58 | L96: 232.3 | M96: -89 | N96: 3 | P96: -89
A97: 180х22 | B97: 3 | C97: 1 | E97: 29.07 | F97: 93 | G97: 93 | K97: =F97*(L97-E97)/2 -> 12872.595 | L97: 305.9 | M97: -90 | N97: 3 | P97: -90
A98: 230х22 | B98: 3 | C98: 1 | E98: 29.07 | F98: 94 | G98: 94 | K98: =F98*(L98-E98)/2 -> 13389.36 | L98: 313.95 | M98: -91 | N98: =B98*C98 -> 3 | P98: -91
A99: Diamant гладкие | B99: 0 | C99: 1 | E99: 29.07 | F99: 95 | G99: 95 | L99: 0 | M99: -95 | N99: 0 | P99: -95
A100: 115х22 | B100: 3 | C100: 1 | E100: 29.07 | F100: 96 | G100: 96 | K100: =F100*(L100-E100)/2 -> 1806.24 | L100: 66.7 | M100: -93 | N100: 3 | P100: -93
A101: 125х22 | B101: 0 | C101: 1 | E101: 29.07 | F101: 97 | G101: 97 | K101: 2605.905 | L101: 82.8 | M101: -97 | N101: 0 | P101: -97
A102: 150х22 25.4 | B102: 0 | C102: 1 | E102: 29.07 | F102: 98 | G102: 98 | K102: 4999.47 | L102: 131.1 | M102: -98 | N102: 0 | P102: -98
A103: 180х22 25.4 | B103: 3 | C103: 1 | E103: 29.07 | F103: 99 | G103: 99 | K103: 5448.96 | L103: 139.15 | M103: -96 | N103: 3 | P103: -96
A104: 200х25.4 | B104: 3 | C104: 1 | E104: 29.07 | F104: 100 | G104: 100 | K104: 5849 | L104: 146.05 | M104: -97 | N104: =B104*C104 -> 3 | P104: -97
A105: 230х22 | B105: 3 | C105: 1 | E105: 29.07 | F105: 101 | G105: 101 | K105: 6255.94 | L105: 152.95 | M105: -98 | N105: 3 | P105: -98
A106: - | B106: 0 | C106: 1 | E106: 29.07 | F106: 102 | G106: 102 | L106: 0 | M106: -102 | N106: 0 | P106: -102
A107: - | B107: 0 | C107: 1 | E107: 29.07 | F107: 103 | G107: 103 | K107: =F107*(L107-E107)/2 -> -1497.105 | L107: 0 | M107: -103 | N107: 0 | P107: -103
A108: - | B108: 0 | C108: 1 | E108: 29.07 | F108: 104 | G108: 104 | K108: =F108*(L108-E108)/2 -> -1511.64 | L108: 0 | M108: -104 | N108: =B108*C108 -> 0 | P108: -104
A109: Bosch турбо | B109: 0 | C109: 1 | E109: 29.07 | F109: 105 | G109: 105 | I109: 0 | J109: $0,00 | K109: =F109*(L109-E109)/2 -> -1526.175 | L109: 0 | M109: -105 | N109: 0 | P109: -105
A110: 230х22 | B110: 3 | C110: 1 | E110: 29.07 | F110: 106 | G110: 106 | H110: 390 | I110: 562 | J110: $5 660,00 | K110: =F110*(L110-E110)/2 -> 22309.29 | L110: 450 | M110: -103 | N110: 3 | P110: -103
A111: Гибкие абразивы | B111: 0 | C111: 1 | E111: 29.07 | F111: 107 | G111: 107 | L111: 0 | M111: -107 | N111: 0 | P111: -107
A112: лб 75х457 | B112: 3 | C112: 1 | E112: 29.07 | F112: 108 | G112: 108 | K112: =F112*(L112-E112)/2 -> -712.8 | L112: 15.87 | M112: -105 | N112: 3 | P112: -105
A113: лб 75х533 | B113: 3 | C113: 1 | E113: 29.07 | F113: 109 | G113: 109 | K113: -647.32375 | L113: 17.1925 | M113: -106 | N113: 3 | P113: -106
A114: клт 115 | B114: 3 | C114: 1 | E114: 29.07 | F114: 110 | G114: 110 | K114: 1.375 | L114: 29.095 | M114: -107 | N114: 3 | P114: -107
A115: клт 125 | B115: 3 | C115: 1 | E115: 29.07 | F115: 111 | G115: 111 | K115: 808.77375 | L115: 43.6425 | M115: -108 | N115: 3 | P115: -108
A116: клт 150 | B116: 3 | C116: 1 | E116: 29.07 | F116: 112 | G116: 112 | K116: 1778.84 | L116: 60.835 | M116: -109 | N116: =B116*C116 -> 3 | P116: -109
A117: клт 180 | B117: 3 | C117: 1 | E117: 29.07 | F117: 113 | G117: 113 | K117: 2840.82 | L117: 79.35 | M117: -110 | N117: 3 | P117: -110
A118: липучка д. 125 | B118: 3 | C118: 1 | E118: 29.07 | F118: 114 | G118: 114 | K118: -1355.46 | L118: 5.29 | M118: -111 | N118: =B118*C118 -> 3 | P118: -111
A119: Чашки Russland | B119: 0 | C119: 1 | E119: 29.07 | F119: 115 | G119: 115 | K119: -1671.525 | L119: 0 | M119: -115 | N119: 0 | P119: -115
A120: 100 double | B120: 3 | C120: 1 | E120: 29.07 | F120: 116 | G120: 116 | K120: 17656.94 | L120: 333.5 | M120: -113 | N120: 3 | P120: -113
A121: 100 turbo | B121: 4 | C121: 1 | E121: 29.07 | F121: 117 | G121: 117 | K121: 19423.755 | L121: 361.1 | M121: -113 | N121: 4 | P121: -113
A122: 115 double | B122: 4 | C122: 1 | E122: 29.07 | F122: 118 | G122: 118 | K122: 21625.27 | L122: 395.6 | M122: -114 | N122: 4 | P122: -114
A123: 115 turbo | B123: 4 | C123: 1 | E123: 29.07 | F123: 119 | G123: 119 | K123: 25092.935 | L123: 450.8 | M123: -115 | N123: 4 | P123: -115
A124: 125 double | B124: 4 | C124: 1 | E124: 29.07 | F124: 120 | G124: 120 | K124: 23647.8 | L124: 423.2 | M124: -116 | N124: 4 | P124: -116
A125: 125 turbo | B125: 4 | C125: 1 | E125: 29.07 | F125: 121 | G125: 121 | K125: 28506.39 | L125: 500.25 | M125: -117 | N125: 4 | P125: -117
A126: 150 double | B126: 4 | C126: 1 | E126: 29.07 | F126: 122 | G126: 122 | K126: 35897.28 | L126: 617.55 | M126: -118 | N126: 4 | P126: -118
A127: 150 turbo | B127: 4 | C127: 1 | E127: 29.07 | F127: 123 | G127: 123 | K127: 40081.395 | L127: 680.8 | M127: -119 | N127: 4 | P127: -119
A128: 180 double | B128: 4 | C128: 1 | E128: 29.07 | F128: 124 | G128: 124 | K128: 47323.36 | L128: 792.35 | M128: -120 | N128: 4 | P128: -120
A129: 180 turbo | B129: 4 | C129: 1 | E129: 29.07 | F129: 125 | G129: 125 | K129: 56761.25 | L129: 937.25 | M129: -121 | N129: 4 | P129: -121
A130: Пильные Diamant | B130: 0 | C130: 1 | E130: 29.07 | F130: 126 | G130: 126 | K130: -1831.41 | L130: 0 | M130: -126 | N130: 0 | P130: -126
A131: 200х24х30 | B131: 0 | C131: 1 | E131: 29.07 | F131: 127 | G131: 127 | K131: 6040.755 | L131: 124.2 | M131: -127 | N131: 0 | P131: -127
A132: 200х48х30 | B132: 0 | C132: 1 | E132: 29.07 | F132: 128 | G132: 128 | K132: 7707.52 | L132: 149.5 | M132: -128 | N132: 0 | P132: -128
A133: 200х24х32 | B133: 0 | C133: 1 | E133: 29.07 | F133: 129 | G133: =F133*C133 -> 129 | K133: 6135.885 | L133: 124.2 | M133: -129 | N133: 0 | P133: -129
A134: 200х36х32 | B134: 0 | C134: 1 | E134: =C134*$B$3 -> 29.07 | F134: 130 | G134: 130 | K134: 7229.95 | L134: 140.3 | M134: =B134-F134 -> -130 | N134: 0 | P134: =M134+O134 -> -130
A135: 200х48х32 | B135: 0 | C135: 1 | E135: 29.07 | F135: 131 | G135: 131 | K135: 7888.165 | L135: 149.5 | M135: -131 | N135: 0 | P135: -131
A136: 200х60х32 | B136: 0 | C136: 1 | E136: 29.07 | F136: 132 | G136: 132 | K136: 9466.38 | L136: 172.5 | M136: -132 | N136: 0 | P136: -132
A137: 250х24х32 | B137: 0 | C137: 1 | E137: 29.07 | F137: 133 | G137: 133 | K137: 9308.67 | L137: 169.05 | M137: -133 | N137: 0 | P137: -133
A138: 250х36х32 | B138: 0 | C138: 1 | E138: 29.07 | F138: 134 | G138: 134 | K138: 10842.61 | L138: 190.9 | M138: -134 | N138: 0 | P138: -134
A139: 250х48х32 | B139: 0 | C139: 1 | E139: 29.07 | F139: 135 | G139: 135 | K139: 12243.15 | L139: 210.45 | M139: -135 | N139: 0 | P139: -135
A140: 250х60х32 | B140: 0 | C140: 1 | E140: 29.07 | F140: 136 | G140: 136 | K140: 13741.44 | L140: 231.15 | M140: -136 | N140: 0 | P140: -136
A141: 250х80х32 | B141: 0 | C141: 1 | E141: 29.07 | F141: 137 | G141: 137 | K141: 17229.805 | L141: 280.6 | M141: -137 | N141: 0 | P141: -137
A142: 300х32х32 | B142: 0 | C142: 1 | E142: 29.07 | F142: 138 | G142: 138 | K142: 16324.02 | L142: 265.65 | M142: -138 | N142: 0 | P142: -138
A143: 300х48х32 | B143: 0 | C143: 1 | E143: 29.07 | F143: 139 | G143: 139 | K143: 17801.035 | L143: 285.2 | M143: -139 | N143: 0 | P143: -139
A144: 300х60х32 | B144: 0 | C144: 1 | E144: 29.07 | F144: 140 | G144: 140 | K144: 20022.1 | L144: 315.1 | M144: -140 | N144: 0 | P144: -140
A145: 350х40х50 | B145: 0 | C145: 1 | E145: 29.07 | F145: 141 | G145: 141 | K145: 27056.49 | L145: 412.85 | M145: -141 | N145: 0 | P145: -141
A146: 350х60х50 | B146: 0 | C146: 1 | E146: 29.07 | F146: 142 | G146: 142 | K146: 30432.73 | L146: 457.7 | M146: -142 | N146: 0 | P146: -142
A147: 350х80х50 | B147: 0 | C147: 1 | E147: 29.07 | F147: 143 | G147: 143 | K147: 33936.045 | L147: 503.7 | M147: -143 | N147: 0 | P147: -143
A148: 400х40х50 | B148: 0 | C148: 1 | E148: 29.07 | F148: 144 | G148: 144 | K148: 45268.56 | L148: 657.8 | M148: -144 | N148: 0 | P148: -144
A149: 400х60х50 | B149: 0 | C149: 1 | E149: 29.07 | F149: 145 | G149: 145 | K149: 49584.925 | L149: 713 | M149: -145 | N149: 0 | P149: -145
A150: 400х80х50 | B150: 0 | C150: 1 | E150: 29.07 | F150: 146 | G150: 146 | K150: 54544.14 | L150: 776.25 | M150: -146 | N150: 0 | P150: -146
A151: Пильные Diamant ламинат | B151: 0 | C151: 1 | E151: 29.07 | F151: 147 | G151: 147 | K151: -2136.645 | L151: 0 | M151: -147 | N151: 0 | P151: -147
A152: 200х48х30 | B152: 0 | C152: 1 | E152: 29.07 | F152: 148 | G152: 148 | K152: 11975.42 | L152: 190.9 | M152: -148 | N152: 0 | P152: -148
A153: 200х56х30 | B153: 4 | C153: 1 | E153: 29.07 | F153: 149 | G153: 149 | K153: 12656.06 | L153: 198.95 | M153: -145 | N153: 4 | P153: -145
A154: 200х24х32 | B154: 4 | C154: 1 | E154: 29.07 | F154: 150 | G154: 150 | K154: 9808.5 | L154: 159.85 | M154: -146 | N154: 4 | P154: -146
A155: 200х48х32 | B155: 0 | C155: 1 | E155: 29.07 | F155: 151 | G155: 151 | K155: 12218.165 | L155: 190.9 | M155: -151 | N155: 0 | P155: -151
A156: 250х40х32 | B156: 0 | C156: 1 | E156: 29.07 | F156: 152 | G156: 152 | K156: 19902.88 | L156: 290.95 | M156: -152 | N156: 0 | P156: -152
A157: 250х60х32 | B157: 0 | C157: 1 | E157: 29.07 | F157: 153 | G157: 153 | K157: 22057.245 | L157: 317.4 | M157: -153 | N157: 0 | P157: -153
A158: 250х80х32 | B158: 0 | C158: 1 | E158: 29.07 | F158: 154 | G158: 154 | K158: 30525.11 | L158: 425.5 | M158: -154 | N158: 0 | P158: -154
A159: Пильные Russland | B159: 0 | C159: 1 | E159: 29.07 | F159: 155 | G159: 155 | K159: -2252.925 | L159: 0 | M159: -155 | N159: 0 | P159: -155
A160: 150х40х32 | B160: 4 | C160: 1 | E160: 29.07 | F160: 156 | G160: 156 | K160: 6074.64 | L160: 106.95 | M160: -152 | N160: =B160*C160 -> 4 | P160: -152
A161: 160х24х32 | B161: 4 | C161: 1 | E161: 29.07 | F161: 157 | G161: 157 | K161: 5933.03 | L161: 104.65 | M161: -153 | N161: =B161*C161 -> 4 | P161: -153
A162: 160х48х32 | B162: 4 | C162: 1 | E162: 29.07 | F162: 158 | G162: 158 | K162: 6788.47 | L162: 115 | M162: -154 | N162: =B162*C162 -> 4 | P162: -154
A163: 180х24х32 | B163: 4 | C163: 1 | E163: 29.07 | F163: 159 | G163: 159 | K163: 6557.16 | L163: 111.55 | M163: -155 | N163: =B163*C163 -> 4 | P163: -155
A164: 180х48х32 | B164: 4 | C164: 1 | E164: 29.07 | F164: 160 | G164: 160 | K164: 8254.4 | L164: 132.25 | M164: -156 | N164: =B164*C164 -> 4 | P164: -156
A165: 200х24х30 | B165: 4 | C165: 1 | E165: 29.07 | F165: 161 | G165: 161 | K165: 7565.39 | L165: 123.05 | M165: -157 | N165: 4 | P165: -157
A166: 200х48х30 | B166: 4 | C166: 1 | E166: 29.07 | F166: 162 | G166: 162 | K166: 9661.68 | L166: 148.35 | M166: -158 | N166: 4 | P166: -158
A167: 200х24х32 | B167: 4 | C167: 1 | E167: 29.07 | F167: 163 | G167: 163 | K167: 7659.37 | L167: 123.05 | M167: -159 | N167: 4 | P167: -159
A168: 200х36х32 | B168: 4 | C168: 1 | E168: 29.07 | F168: 164 | G168: 164 | K168: 9026.56 | L168: 139.15 | M168: -160 | N168: 4 | P168: -160
A169: 200х48х32 | B169: 4 | C169: 1 | E169: 29.07 | F169: 165 | G169: 165 | K169: 9840.6 | L169: 148.35 | M169: -161 | N169: 4 | P169: -161
A170: 200х60х32 | B170: 4 | C170: 1 | E170: 29.07 | F170: 166 | G170: 166 | K170: 11618.34 | L170: 169.05 | M170: -162 | N170: 4 | P170: -162
A171: 250х24х32 | B171: 4 | C171: 1 | E171: 29.07 | F171: 167 | G171: 167 | K171: 11400.255 | L171: 165.6 | M171: -163 | N171: 4 | P171: -163
A172: 250х36х32 | B172: 4 | C172: 1 | E172: 29.07 | F172: 168 | G172: 168 | K172: 13110.72 | L172: 185.15 | M172: -164 | N172: 4 | P172: -164
A173: 250х48х32 | B173: 0 | C173: 1 | E173: 29.07 | F173: 169 | G173: 169 | K173: 14937.91 | L173: 205.85 | M173: -169 | N173: 0 | P173: -169
A174: 250х60х32 | B174: 4 | C174: 1 | E174: 29.07 | F174: 170 | G174: 170 | K174: 16785.8 | L174: 226.55 | M174: -166 | N174: 4 | P174: -166
A175: 250х80х32 | B175: 4 | C175: 1 | E175: 29.07 | F175: 171 | G175: 171 | K175: 21014.19 | L175: 274.85 | M175: -167 | N175: 4 | P175: -167
A176: 300х32х32 | B176: 4 | C176: 1 | E176: 29.07 | F176: 172 | G176: 172 | K176: =F176*(L176-E176)/2 -> 20148.08 | L176: 263.35 | M176: -168 | N176: 4 | P176: -168
A177: 300х48х32 | B177: 4 | C177: 1 | E177: 29.07 | F177: 173 | G177: 173 | K177: 21757.345 | L177: 280.6 | M177: -169 | N177: 4 | P177: -169
A178: 300х60х32 | B178: 4 | C178: 1 | E178: 29.07 | F178: 174 | G178: 174 | K178: 24284.31 | L178: 308.2 | M178: -170 | N178: 4 | P178: -170
A179: 350х40х50 | B179: 4 | C179: 1 | E179: 29.07 | F179: 175 | G179: 175 | K179: 32775.75 | L179: 403.65 | M179: -171 | N179: =B179*C179 -> 4 | P179: -171
A180: 350х60х50 | B180: 4 | C180: 1 | E180: 29.07 | F180: 176 | G180: 176 | K180: 36909.84 | L180: 448.5 | M180: -172 | N180: 4 | P180: -172
A181: 350х80х50 | B181: 4 | C181: 1 | E181: 29.07 | F181: 177 | G181: 177 | K181: 41088.78 | L181: 493.35 | M181: -173 | N181: 4 | P181: -173
A182: 400х40х50 | B182: 4 | C182: 1 | E182: 29.07 | F182: 178 | G182: 178 | K182: 54626.42 | L182: 642.85 | M182: -174 | N182: 4 | P182: -174
A183: 400х60х50 | B183: 4 | C183: 1 | E183: 29.07 | F183: 179 | G183: 179 | K183: 59873.71 | L183: 698.05 | M183: -175 | N183: 4 | P183: -175
A184: 400х80х50 | B184: 4 | C184: 1 | E184: 29.07 | F184: 180 | G184: 180 | K184: 65797.2 | L184: 760.15 | M184: -176 | N184: 4 | P184: -176
A185: Пильные Russland для УШМ | B185: 0 | C185: 1 | E185: 29.07 | F185: 181 | G185: 181 | K185: -2630.835 | L185: 0 | M185: -181 | N185: =B185*C185 -> 0 | P185: -181
A186: 115х40х22 | B186: 4 | C186: 1 | E186: 29.07 | F186: 182 | G186: 182 | K186: 4366.18 | L186: 77.05 | M186: -178 | N186: =B186*C186 -> 4 | P186: -178
A187: 125х24х22 | B187: 4 | C187: 1 | E187: 29.07 | F187: 183 | G187: 183 | K187: 3653.595 | L187: 69 | M187: -179 | N187: =B187*C187 -> 4 | P187: -179
A188: 125х40х22 | B188: 4 | C188: 1 | E188: 29.07 | F188: 184 | G188: 184 | K188: 4943.16 | L188: 82.8 | M188: -180 | N188: =B188*C188 -> 4 | P188: -180
A189: 150х40х22 | B189: 0 | C189: 1 | E189: 29.07 | F189: 185 | G189: 185 | K189: 7203.9 | L189: 106.95 | M189: -185 | N189: 0 | P189: -185
A190: 160х24х22 | B190: 0 | C190: 1 | E190: 29.07 | F190: 186 | G190: 186 | K190: 7028.94 | L190: 104.65 | M190: -186 | N190: 0 | P190: -186
A191: 160х48х22 | B191: 4 | C191: 1 | E191: 29.07 | F191: 187 | G191: 187 | K191: 8034.455 | L191: 115 | M191: -183 | N191: 4 | P191: -183
A192: 180х24х22 | B192: 4 | C192: 1 | E192: 29.07 | F192: 188 | G192: 188 | K192: 7753.12 | L192: 111.55 | M192: -184 | N192: 4 | P192: -184
A193: 180х48х22 | B193: 4 | C193: 1 | E193: 29.07 | F193: 189 | G193: 189 | K193: 9750.51 | L193: 132.25 | M193: -185 | N193: 4 | P193: -185
A194: 230x40x22 | B194: 4 | C194: 1 | E194: 29.07 | F194: 190 | G194: 190 | K194: 13188.85 | L194: 167.9 | M194: -186 | N194: =B194*C194 -> 4 | P194: -186
A195: Russland Пильный для УШМ по ламинату | B195: 0 | C195: 1 | E195: 29.07 | F195: 191 | G195: 191 | K195: -2776.185 | L195: 0 | M195: -191 | N195: =B195*C195 -> 0 | P195: -191
A196: 115х40х22MF (лам) | B196: 0 | C196: 1 | E196: 29.07 | F196: 192 | G196: 192 | K196: 5820.48 | L196: 89.7 | M196: -192 | N196: =B196*C196 -> 0 | P196: -192
A197: 125х40х22MF (лам) | B197: 0 | C197: 1 | E197: 29.07 | F197: 193 | G197: =F197*C197 -> 193 | K197: 6183.72 | L197: 93.15 | M197: -193 | N197: =B197*C197 -> 0 | P197: -193
A198: Пильные Russland ламинат | B198: 0 | C198: 1 | E198: =C198*$B$3 -> 29.07 | F198: 194 | G198: 194 | K198: -2819.79 | L198: 0 | M198: =B198-F198 -> -194 | N198: 0 | P198: =M198+O198 -> -194
A199: 200x24x30MF (лам) | B199: 0 | C199: 1 | E199: 29.07 | F199: 195 | G199: 195 | K199: 13199.55 | L199: 164.45 | M199: -195 | N199: 0 | P199: -195
A200: 200x48x30MF (лам) | B200: 0 | C200: 1 | E200: 29.07 | F200: 196 | G200: 196 | K200: 15295.84 | L200: 185.15 | M200: -196 | N200: 0 | P200: -196
... 95 more rows

Sheet 29,11,11
A1: наименование | B1: кол-во | C1: цена $ | D1: увезли | E1: цена р | F1: ввод | G1: продано | K1: прибыль | L1: продажа | M1: остаток | O1: привоз | P1: стало
A2: Должны за: | C2: приход | E2: приход | F2: прод. | G2: на сумму | K2: пополам
A3: ввод курса $--------->
A4: kobalt сегмент
A5: 115х22 сегм Kobalt | B5: 0 | C5: 1 | E5: =C5*$B$3 -> 0 | G5: =F5*C5 -> 0 | K5: =F5*(L5-E5)/2 -> 0 | L5: 119.6 | M5: =B5-F5 -> 0 | N5: =B5*C5 -> 0 | P5: =M5+O5 -> 0
A6: 125х22 сегм Kobalt | B6: -1 | C6: 1 | E6: =C6*$B$3 -> 0 | G6: 0 | K6: =F6*(L6-E6)/2 -> 0 | L6: 132.25 | M6: =B6-F6 -> -1 | N6: =B6*C6 -> -1 | P6: =M6+O6 -> -1
A7: 150х22 сегм Kobalt | B7: -2 | C7: 1 | E7: 0 | G7: 0 | K7: =F7*(L7-E7)/2 -> 0 | L7: 218.5 | M7: -2 | N7: -2 | P7: -2
A8: 180х22 сегм kobalt | B8: -3 | C8: 1 | E8: 0 | G8: 0 | K8: =F8*(L8-E8)/2 -> 0 | L8: 231.15 | M8: -3 | N8: -3 | P8: -3
A9: 230х22 сегм Kobalt | B9: -4 | C9: 1 | E9: 0 | G9: 0 | K9: =F9*(L9-E9)/2 -> 0 | L9: 264.5 | M9: -4 | N9: -4 | P9: -4
A10: kobalt турбо | B10: -6 | C10: 1 | E10: 0 | G10: 0 | L10: 0 | M10: -6 | N10: -6 | P10: -6
A11: 115х22 турбо Kobalt | B11: -6 | C11: 1 | E11: 0 | G11: 0 | K11: =F11*(L11-E11)/2 -> 0 | L11: 158.7 | M11: -6 | N11: -6 | P11: -6
A12: 125х22 турбо Kobalt | B12: -7 | C12: 1 | E12: 0 | G12: 0 | K12: =F12*(L12-E12)/2 -> 0 | L12: 185.15 | M12: -7 | N12: -7 | P12: -7
A13: 150х22 турбо Kobalt | B13: -8 | C13: 1 | E13: 0 | G13: 0 | K13: =F13*(L13-E13)/2 -> 0 | L13: 290.95 | M13: -8 | N13: -8 | P13: -8
A14: 180х22 турбо Kobalt | B14: -9 | C14: 1 | E14: 0 | G14: 0 | K14: =F14*(L14-E14)/2 -> 0 | L14: 384.1 | M14: -9 | N14: -9 | P14: -9
A15: 230х22 турбо Kobalt | B15: -10 | C15: 1 | E15: 0 | G15: 0 | K15: =F15*(L15-E15)/2 -> 0 | L15: 410.55 | M15: -10 | N15: -10 | P15: -10
A16: Kobalt супертурбо | B16: -12 | C16: 1 | E16: 0 | G16: 0 | L16: 0 | M16: -12 | N16: -12 | P16: -12
A17: 230х22 супертурбо Kobalt | B17: -12 | C17: 1 | E17: 0 | G17: 0 | K17: =F17*(L17-E17)/2 -> 0 | L17: 458.85 | M17: -12 | N17: -12 | P17: -12
A18: Kobalt гладкий | B18: -14 | C18: 1 | E18: =C18*$B$3 -> 0 | G18: 0 | L18: 0 | M18: -14 | N18: =B18*C18 -> -14 | P18: -14
A19: 230х22 гладкий Kobalt | B19: -14 | C19: 1 | E19: 0 | G19: 0 | K19: =F19*(L19-E19)/2 -> 0 | L19: 251.85 | M19: -14 | N19: =B19*C19 -> -14 | P19: -14
A20: Universal сегментные | B20: -16 | C20: 1 | E20: 0 | G20: 0 | L20: 0 | M20: -16 | N20: -16 | P20: -16
A21: 115х22 | B21: -17 | C21: 1 | E21: 0 | G21: 0 | K21: =F21*(L21-E21)/2 -> 0 | L21: 46 | M21: -17 | N21: -17 | P21: -17
A22: 125х22 | B22: -18 | C22: 1 | E22: 0 | G22: 0 | K22: =F22*(L22-E22)/2 -> 0 | L22: 52.9 | M22: -18 | N22: -18 | P22: -18
A23: 150х22 | B23: -19 | C23: 1 | E23: 0 | G23: 0 | K23: =F23*(L23-E23)/2 -> 0 | L23: 93.15 | M23: -19 | N23: -19 | P23: -19
A24: 180х22 | B24: -20 | C24: 1 | E24: 0 | G24: 0 | K24: =F24*(L24-E24)/2 -> 0 | L24: 98.9 | M24: -20 | N24: -20 | P24: -20
A25: 230х22 | B25: -21 | C25: 1 | E25: 0 | G25: 0 | K25: =F25*(L25-E25)/2 -> 0 | L25: 112.7 | M25: -21 | N25: -21 | P25: -21
A26: Universal турбо | B26: -22 | C26: 1 | E26: 0 | G26: 0 | L26: 0 | M26: -22 | N26: -22 | P26: -22
A27: 115х22 | B27: -23 | C27: 1 | E27: 0 | G27: 0 | K27: =F27*(L27-E27)/2 -> 0 | L27: 66.7 | M27: -23 | N27: -23 | P27: -23
A28: 125х22 | B28: -24 | C28: 1 | E28: 0 | G28: 0 | K28: =F28*(L28-E28)/2 -> 0 | L28: 79.35 | M28: -24 | N28: -24 | P28: -24
A29: 150х22 | B29: -24 | C29: 1 | E29: 0 | G29: 0 | K29: =F29*(L29-E29)/2 -> 0 | L29: 125.35 | M29: -24 | N29: -24 | P29: -24
A30: 180х22 | B30: -25 | C30: 1 | E30: 0 | G30: 0 | K30: =F30*(L30-E30)/2 -> 0 | L30: 165.6 | M30: -25 | N30: -25 | P30: -25
A31: 230х22 | B31: -27 | C31: 1 | E31: 0 | G31: 0 | K31: =F31*(L31-E31)/2 -> 0 | L31: 185.15 | M31: -27 | N31: -27 | P31: -27
A32: Universal супертурбо | B32: -28 | C32: 1 | E32: 0 | G32: 0 | L32: 0 | M32: -28 | N32: -28 | P32: -28
A33: 115х22 | B33: -28 | C33: 1 | E33: 0 | G33: 0 | K33: =F33*(L33-E33)/2 -> 0 | L33: 72.45 | M33: -28 | N33: -28 | P33: -28
A34: 125х22 | B34: -30 | C34: 1 | E34: 0 | G34: 0 | K34: =F34*(L34-E34)/2 -> 0 | L34: 93.15 | M34: -30 | N34: -30 | P34: -30
A35: 150х22 | B35: -30 | C35: 1 | E35: 0 | G35: 0 | K35: =F35*(L35-E35)/2 -> 0 | L35: 139.15 | M35: -30 | N35: -30 | P35: -30
A36: 180х22 | B36: -32 | C36: 1 | E36: 0 | G36: 0 | K36: =F36*(L36-E36)/2 -> 0 | L36: 178.25 | M36: -32 | N36: -32 | P36: -32
A37: 230х22 | B37: -33 | C37: 1 | E37: 0 | G37: 0 | K37: =F37*(L37-E37)/2 -> 0 | L37: 204.7 | M37: -33 | N37: -33 | P37: -33
A38: Rusland сегментные | B38: -34 | C38: 1 | E38: 0 | G38: 0 | L38: 0 | M38: -34 | N38: -34 | P38: -34
A39: 115х22 | B39: -34 | C39: 1 | E39: 0 | G39: 0 | K39: =F39*(L39-E39)/2 -> 0 | L39: 75.9 | M39: -34 | N39: -34 | P39: -34
A40: 125х22 | B40: -35 | C40: 1 | E40: 0 | G40: 0 | K40: =F40*(L40-E40)/2 -> 0 | L40: 87.4 | M40: -35 | N40: -35 | P40: -35
A41: 150х22 | B41: -36 | C41: 1 | E41: 0 | G41: 0 | K41: =F41*(L41-E41)/2 -> 0 | L41: 149.5 | M41: -36 | N41: -36 | P41: -36
A42: 180х22 | B42: -37 | C42: 1 | E42: 0 | G42: 0 | K42: =F42*(L42-E42)/2 -> 0 | L42: 159.85 | M42: -37 | N42: -37 | P42: -37
A43: 230х22 | B43: -38 | C43: 1 | E43: 0 | G43: 0 | K43: =F43*(L43-E43)/2 -> 0 | L43: 194.35 | M43: -38 | N43: -38 | P43: -38
A44: Rusland турбо | B44: -40 | C44: 1 | E44: 0 | G44: 0 | L44: 0 | M44: -40 | N44: -40 | P44: -40
A45: 115х22 | B45: -39 | C45: 1 | E45: 0 | G45: 0 | K45: =F45*(L45-E45)/2 -> 0 | L45: 112.7 | M45: -39 | N45: -39 | P45: -39
A46: 125х22 | B46: -40 | C46: 1 | E46: 0 | G46: 0 | K46: =F46*(L46-E46)/2 -> 0 | L46: 131.1 | M46: -40 | N46: -40 | P46: -40
A47: 150х22 | B47: -41 | C47: 1 | E47: 0 | G47: 0 | K47: =F47*(L47-E47)/2 -> 0 | L47: 203.55 | M47: -41 | N47: -41 | P47: -41
A48: 180х22 | B48: -42 | C48: 1 | E48: 0 | G48: 0 | K48: =F48*(L48-E48)/2 -> 0 | L48: 276 | M48: -42 | N48: -42 | P48: -42
A49: 230х22 | B49: -43 | C49: 1 | E49: 0 | G49: 0 | K49: =F49*(L49-E49)/2 -> 0 | L49: 290.95 | M49: -43 | N49: -43 | P49: -43
A50: Rusland супертурбо | B50: -46 | C50: 1 | E50: 0 | G50: 0 | L50: 0 | M50: -46 | N50: -46 | P50: -46
A51: 115х22 | B51: -45 | C51: 1 | E51: 0 | G51: 0 | K51: =F51*(L51-E51)/2 -> 0 | L51: 124.2 | M51: -45 | N51: -45 | P51: -45
A52: 125х22 | B52: -46 | C52: 1 | E52: 0 | G52: 0 | K52: =F52*(L52-E52)/2 -> 0 | L52: 146.05 | M52: -46 | N52: -46 | P52: -46
A53: 150х22 | B53: -47 | C53: 1 | E53: 0 | G53: 0 | K53: =F53*(L53-E53)/2 -> 0 | L53: 232.3 | M53: -47 | N53: -47 | P53: -47
A54: 180х22 | B54: -48 | C54: 1 | E54: 0 | G54: 0 | K54: =F54*(L54-E54)/2 -> 0 | L54: 305.9 | M54: -48 | N54: -48 | P54: -48
A55: 230х22 | B55: -49 | C55: 1 | E55: 0 | G55: 0 | K55: =F55*(L55-E55)/2 -> 0 | L55: 313.95 | M55: -49 | N55: -49 | P55: -49
A56: Rusland гладкие | B56: -52 | C56: 1 | E56: 0 | G56: 0 | L56: 0 | M56: -52 | N56: -52 | P56: -52
A57: 115х22 | B57: -53 | C57: 1 | E57: 0 | G57: 0 | K57: =F57*(L57-E57)/2 -> 0 | L57: 66.7 | M57: -53 | N57: -53 | P57: -53
A58: 125х22 | B58: -52 | C58: 1 | E58: 0 | G58: 0 | K58: 0 | L58: 82.8 | M58: -52 | N58: -52 | P58: -52
A59: 150х22 | B59: -53 | C59: 1 | E59: 0 | G59: 0 | K59: 0 | L59: 131.1 | M59: -53 | N59: -53 | P59: -53
A60: 150х25.4 | B60: -54 | C60: 1 | E60: 0 | G60: 0 | K60: 0 | L60: 131.1 | M60: -54 | N60: =B60*C60 -> -54 | P60: -54
A61: 180х22 | B61: -57 | C61: 1 | E61: 0 | G61: 0 | K61: 0 | L61: 139.15 | M61: -57 | N61: -57 | P61: -57
A62: 180х25.4 | B62: -56 | C62: 1 | E62: 0 | G62: 0 | K62: 0 | L62: 139.15 | M62: -56 | N62: =B62*C62 -> -56 | P62: -56
A63: 200х25.4 | B63: -57 | C63: 1 | E63: 0 | G63: 0 | K63: 0 | L63: 146.05 | M63: -57 | N63: =B63*C63 -> -57 | P63: -57
A64: 230х22 | B64: -58 | C64: 1 | E64: 0 | G64: 0 | K64: 0 | L64: 152.95 | M64: -58 | N64: -58 | P64: -58
A65: Greapo сегментные | B65: -61 | C65: 1 | E65: 0 | G65: 0 | L65: 0 | M65: -61 | N65: -61 | P65: -61
A66: 115х22 | B66: -62 | C66: 1 | E66: 0 | G66: 0 | K66: =F66*(L66-E66)/2 -> 0 | L66: 33.35 | M66: -62 | N66: -62 | P66: -62
A67: 125х22 | B67: -63 | C67: 1 | E67: 0 | G67: 0 | K67: =F67*(L67-E67)/2 -> 0 | L67: 46 | M67: -63 | N67: -63 | P67: -63
A68: 150х22 | B68: -64 | C68: 1 | E68: 0 | G68: 0 | K68: =F68*(L68-E68)/2 -> 0 | L68: 66.7 | M68: -64 | N68: -64 | P68: -64
A69: 180х22 | B69: -65 | C69: 1 | E69: 0 | G69: =F69*C69 -> 0 | K69: =F69*(L69-E69)/2 -> 0 | L69: 86.25 | M69: -65 | N69: -65 | P69: -65
A70: 230х22 | B70: -66 | C70: 1 | E70: =C70*$B$3 -> 0 | G70: 0 | K70: =F70*(L70-E70)/2 -> 0 | L70: 93.15 | M70: =B70-F70 -> -66 | N70: -66 | P70: =M70+O70 -> -66
A71: Greapo турбо | B71: -67 | C71: 1 | E71: 0 | G71: 0 | L71: 0 | M71: -67 | N71: -67 | P71: -67
A72: 115х22 | B72: -66 | C72: 1 | E72: 0 | G72: 0 | K72: =F72*(L72-E72)/2 -> 0 | L72: 52.9 | M72: -66 | N72: -66 | P72: -66
A73: 125х22 | B73: -67 | C73: 1 | E73: 0 | G73: 0 | K73: =F73*(L73-E73)/2 -> 0 | L73: 59.8 | M73: -67 | N73: -67 | P73: -67
A74: 150х22 | B74: -70 | C74: 1 | E74: 0 | G74: 0 | K74: =F74*(L74-E74)/2 -> 0 | L74: 93.15 | M74: -70 | N74: =B74*C74 -> -70 | P74: -70
A75: 180х22 | B75: -71 | C75: 1 | E75: 0 | G75: 0 | K75: =F75*(L75-E75)/2 -> 0 | L75: 125.35 | M75: -71 | N75: -71 | P75: -71
A76: 230х22 | B76: -72 | C76: 1 | E76: 0 | G76: 0 | K76: =F76*(L76-E76)/2 -> 0 | L76: 146.05 | M76: -72 | N76: -72 | P76: -72
A77: Greapo супертурбо | B77: -73 | C77: 1 | E77: 0 | G77: 0 | L77: 0 | M77: -73 | N77: -73 | P77: -73
A78: 115х22 | B78: -74 | C78: 1 | E78: 0 | G78: 0 | K78: =F78*(L78-E78)/2 -> 0 | L78: 59.8 | M78: -74 | N78: -74 | P78: -74
A79: 125х22 | B79: -75 | C79: 1 | E79: 0 | G79: 0 | K79: =F79*(L79-E79)/2 -> 0 | L79: 66.7 | M79: -75 | N79: -75 | P79: -75
A80: 230х22 | B80: -76 | C80: 1 | E80: 0 | G80: 0 | K80: =F80*(L80-E80)/2 -> 0 | L80: 158.7 | M80: -76 | N80: -76 | P80: -76
A81: Diamant сегментные | B81: -77 | C81: 1 | E81: 0 | G81: 0 | L81: 0 | M81: -77 | N81: -77 | P81: -77
A82: 115х22 | B82: -76 | C82: 1 | E82: 0 | G82: 0 | K82: =F82*(L82-E82)/2 -> 0 | L82: 75.9 | M82: -76 | N82: -76 | P82: -76
A83: 125х22 | B83: -79 | C83: 1 | E83: 0 | G83: 0 | K83: =F83*(L83-E83)/2 -> 0 | L83: 87.4 | M83: -79 | N83: -79 | P83: -79
A84: 150х22 | B84: -80 | C84: 1 | E84: 0 | G84: 0 | K84: =F84*(L84-E84)/2 -> 0 | L84: 149.5 | M84: -80 | N84: -80 | P84: -80
A85: 180х22 | B85: -78 | C85: 1 | E85: 0 | G85: 0 | K85: =F85*(L85-E85)/2 -> 0 | L85: 159.85 | M85: -78 | N85: -78 | P85: -78
A86: 230х22 | B86: -79 | C86: 1 | E86: 0 | G86: 0 | K86: =F86*(L86-E86)/2 -> 0 | L86: 194.35 | M86: -79 | N86: -79 | P86: -79
A87: Diamant турбо | B87: -83 | C87: 1 | E87: 0 | G87: 0 | L87: 0 | M87: -83 | N87: -83 | P87: -83
A88: 115х22 | B88: -81 | C88: 1 | E88: 0 | G88: 0 | K88: =F88*(L88-E88)/2 -> 0 | L88: 112.7 | M88: -81 | N88: -81 | P88: -81
A89: 125х22 | B89: -82 | C89: 1 | E89: 0 | G89: 0 | K89: =F89*(L89-E89)/2 -> 0 | L89: 131.1 | M89: -82 | N89: -82 | P89: -82
A90: 150х22 | B90: -83 | C90: 1 | E90: 0 | G90: 0 | K90: =F90*(L90-E90)/2 -> 0 | L90: 203.55 | M90: -83 | N90: -83 | P90: -83
A91: 180х22 | B91: -84 | C91: 1 | E91: 0 | G91: 0 | K91: =F91*(L91-E91)/2 -> 0 | L91: 276 | M91: -84 | N91: -84 | P91: -84
A92: 230х22 | B92: -85 | C92: 1 | E92: 0 | G92: 0 | K92: =F92*(L92-E92)/2 -> 0 | L92: 290.95 | M92: -85 | N92: -85 | P92: -85
A93: Diamant супертурбо | B93: -89 | C93: 1 | E93: 0 | G93: 0 | L93: 0 | M93: -89 | N93: -89 | P93: -89
A94: 115х22 | B94: -87 | C94: 1 | E94: 0 | G94: 0 | K94: =F94*(L94-E94)/2 -> 0 | L94: 124.2 | M94: -87 | N94: -87 | P94: -87
A95: 125х22 | B95: -88 | C95: 1 | E95: 0 | G95: 0 | K95: =F95*(L95-E95)/2 -> 0 | L95: 146.05 | M95: -88 | N95: -88 | P95: -88
A96: 150х22 | B96: -89 | C96: 1 | E96: 0 | G96: 0 | K96: =F96*(L96-E96)/2 -> 0 | L96: 232.3 | M96: -89 | N96: -89 | P96: -89
A97: 180х22 | B97: -90 | C97: 1 | E97: 0 | G97: 0 | K97: =F97*(L97-E97)/2 -> 0 | L97: 305.9 | M97: -90 | N97: -90 | P97: -90
A98: 230х22 | B98: -91 | C98: 1 | E98: 0 | G98: 0 | K98: =F98*(L98-E98)/2 -> 0 | L98: 313.95 | M98: -91 | N98: =B98*C98 -> -91 | P98: -91
A99: Diamant гладкие | B99: -95 | C99: 1 | E99: 0 | G99: 0 | L99: 0 | M99: -95 | N99: -95 | P99: -95
A100: 115х22 | B100: -93 | C100: 1 | E100: 0 | G100: 0 | K100: =F100*(L100-E100)/2 -> 0 | L100: 66.7 | M100: -93 | N100: -93 | P100: -93
A101: 125х22 | B101: -97 | C101: 1 | E101: 0 | G101: 0 | K101: 0 | L101: 82.8 | M101: -97 | N101: -97 | P101: -97
A102: 150х22 25.4 | B102: -98 | C102: 1 | E102: 0 | G102: 0 | K102: 0 | L102: 131.1 | M102: -98 | N102: -98 | P102: -98
A103: 180х22 25.4 | B103: -96 | C103: 1 | E103: 0 | G103: 0 | K103: 0 | L103: 139.15 | M103: -96 | N103: -96 | P103: -96
A104: 200х25.4 | B104: -97 | C104: 1 | E104: 0 | G104: 0 | K104: 0 | L104: 146.05 | M104: -97 | N104: =B104*C104 -> -97 | P104: -97
A105: 230х22 | B105: -98 | C105: 1 | E105: 0 | G105: 0 | K105: 0 | L105: 152.95 | M105: -98 | N105: -98 | P105: -98
A106: - | B106: -102 | C106: 1 | E106: 0 | G106: 0 | L106: 0 | M106: -102 | N106: -102 | P106: -102
A107: - | B107: -103 | C107: 1 | E107: 0 | G107: 0 | K107: =F107*(L107-E107)/2 -> 0 | L107: 0 | M107: -103 | N107: -103 | P107: -103
A108: - | B108: -104 | C108: 1 | E108: 0 | G108: 0 | K108: =F108*(L108-E108)/2 -> 0 | L108: 0 | M108: -104 | N108: =B108*C108 -> -104 | P108: -104
A109: Bosch турбо | B109: -105 | C109: 1 | E109: 0 | G109: 0 | I109: 0 | J109: $0,00 | K109: =F109*(L109-E109)/2 -> 0 | L109: 0 | M109: -105 | N109: -105 | P109: -105
A110: 230х22 | B110: -103 | C110: 1 | E110: 0 | G110: 0 | H110: 390 | I110: 562 | J110: $5 660,00 | K110: =F110*(L110-E110)/2 -> 0 | L110: 450 | M110: -103 | N110: -103 | P110: -103
A111: Гибкие абразивы | B111: -107 | C111: 1 | E111: 0 | G111: 0 | L111: 0 | M111: -107 | N111: -107 | P111: -107
A112: лб 75х457 | B112: -105 | C112: 1 | E112: 0 | G112: 0 | K112: =F112*(L112-E112)/2 -> 0 | L112: 15.87 | M112: -105 | N112: -105 | P112: -105
A113: лб 75х533 | B113: -106 | C113: 1 | E113: 0 | G113: 0 | K113: 0 | L113: 17.1925 | M113: -106 | N113: -106 | P113: -106
A114: клт 115 | B114: -107 | C114: 1 | E114: 0 | G114: 0 | K114: 0 | L114: 29.095 | M114: -107 | N114: -107 | P114: -107
A115: клт 125 | B115: -108 | C115: 1 | E115: 0 | G115: 0 | K115: 0 | L115: 43.6425 | M115: -108 | N115: -108 | P115: -108
A116: клт 150 | B116: -109 | C116: 1 | E116: 0 | G116: 0 | K116: 0 | L116: 60.835 | M116: -109 | N116: =B116*C116 -> -109 | P116: -109
A117: клт 180 | B117: -110 | C117: 1 | E117: 0 | G117: 0 | K117: 0 | L117: 79.35 | M117: -110 | N117: -110 | P117: -110
A118: липучка д. 125 | B118: -111 | C118: 1 | E118: 0 | G118: 0 | K118: 0 | L118: 5.29 | M118: -111 | N118: =B118*C118 -> -111 | P118: -111
A119: Чашки Russland | B119: -115 | C119: 1 | E119: 0 | G119: 0 | K119: 0 | L119: 0 | M119: -115 | N119: -115 | P119: -115
A120: 100 double | B120: -113 | C120: 1 | E120: 0 | G120: 0 | K120: 0 | L120: 333.5 | M120: -113 | N120: -113 | P120: -113
A121: 100 turbo | B121: -113 | C121: 1 | E121: 0 | G121: 0 | K121: 0 | L121: 361.1 | M121: -113 | N121: -113 | P121: -113
A122: 115 double | B122: -114 | C122: 1 | E122: 0 | G122: 0 | K122: 0 | L122: 395.6 | M122: -114 | N122: -114 | P122: -114
A123: 115 turbo | B123: -115 | C123: 1 | E123: 0 | G123: 0 | K123: 0 | L123: 450.8 | M123: -115 | N123: -115 | P123: -115
A124: 125 double | B124: -116 | C124: 1 | E124: 0 | G124: 0 | K124: 0 | L124: 423.2 | M124: -116 | N124: -116 | P124: -116
A125: 125 turbo | B125: -117 | C125: 1 | E125: 0 | G125: 0 | K125: 0 | L125: 500.25 | M125: -117 | N125: -117 | P125: -117
A126: 150 double | B126: -118 | C126: 1 | E126: 0 | G126: 0 | K126: 0 | L126: 617.55 | M126: -118 | N126: -118 | P126: -118
A127: 150 turbo | B127: -119 | C127: 1 | E127: 0 | G127: 0 | K127: 0 | L127: 680.8 | M127: -119 | N127: -119 | P127: -119
A128: 180 double | B128: -120 | C128: 1 | E128: 0 | G128: 0 | K128: 0 | L128: 792.35 | M128: -120 | N128: -120 | P128: -120
A129: 180 turbo | B129: -121 | C129: 1 | E129: 0 | G129: 0 | K129: 0 | L129: 937.25 | M129: -121 | N129: -121 | P129: -121
A130: Пильные Diamant | B130: -126 | C130: 1 | E130: 0 | G130: 0 | K130: 0 | L130: 0 | M130: -126 | N130: -126 | P130: -126
A131: 200х24х30 | B131: -127 | C131: 1 | E131: 0 | G131: 0 | K131: 0 | L131: 124.2 | M131: -127 | N131: -127 | P131: -127
A132: 200х48х30 | B132: -128 | C132: 1 | E132: 0 | G132: 0 | K132: 0 | L132: 149.5 | M132: -128 | N132: -128 | P132: -128
A133: 200х24х32 | B133: -129 | C133: 1 | E133: 0 | G133: =F133*C133 -> 0 | K133: 0 | L133: 124.2 | M133: -129 | N133: -129 | P133: -129
A134: 200х36х32 | B134: -130 | C134: 1 | E134: =C134*$B$3 -> 0 | G134: 0 | K134: 0 | L134: 140.3 | M134: =B134-F134 -> -130 | N134: -130 | P134: =M134+O134 -> -130
A135: 200х48х32 | B135: -131 | C135: 1 | E135: 0 | G135: 0 | K135: 0 | L135: 149.5 | M135: -131 | N135: -131 | P135: -131
A136: 200х60х32 | B136: -132 | C136: 1 | E136: 0 | G136: 0 | K136: 0 | L136: 172.5 | M136: -132 | N136: -132 | P136: -132
A137: 250х24х32 | B137: -133 | C137: 1 | E137: 0 | G137: 0 | K137: 0 | L137: 169.05 | M137: -133 | N137: -133 | P137: -133
A138: 250х36х32 | B138: -134 | C138: 1 | E138: 0 | G138: 0 | K138: 0 | L138: 190.9 | M138: -134 | N138: -134 | P138: -134
A139: 250х48х32 | B139: -135 | C139: 1 | E139: 0 | G139: 0 | K139: 0 | L139: 210.45 | M139: -135 | N139: -135 | P139: -135
A140: 250х60х32 | B140: -136 | C140: 1 | E140: 0 | G140: 0 | K140: 0 | L140: 231.15 | M140: -136 | N140: -136 | P140: -136
A141: 250х80х32 | B141: -137 | C141: 1 | E141: 0 | G141: 0 | K141: 0 | L141: 280.6 | M141: -137 | N141: -137 | P141: -137
A142: 300х32х32 | B142: -138 | C142: 1 | E142: 0 | G142: 0 | K142: 0 | L142: 265.65 | M142: -138 | N142: -138 | P142: -138
A143: 300х48х32 | B143: -139 | C143: 1 | E143: 0 | G143: 0 | K143: 0 | L143: 285.2 | M143: -139 | N143: -139 | P143: -139
A144: 300х60х32 | B144: -140 | C144: 1 | E144: 0 | G144: 0 | K144: 0 | L144: 315.1 | M144: -140 | N144: -140 | P144: -140
A145: 350х40х50 | B145: -141 | C145: 1 | E145: 0 | G145: 0 | K145: 0 | L145: 412.85 | M145: -141 | N145: -141 | P145: -141
A146: 350х60х50 | B146: -142 | C146: 1 | E146: 0 | G146: 0 | K146: 0 | L146: 457.7 | M146: -142 | N146: -142 | P146: -142
A147: 350х80х50 | B147: -143 | C147: 1 | E147: 0 | G147: 0 | K147: 0 | L147: 503.7 | M147: -143 | N147: -143 | P147: -143
A148: 400х40х50 | B148: -144 | C148: 1 | E148: 0 | G148: 0 | K148: 0 | L148: 657.8 | M148: -144 | N148: -144 | P148: -144
A149: 400х60х50 | B149: -145 | C149: 1 | E149: 0 | G149: 0 | K149: 0 | L149: 713 | M149: -145 | N149: -145 | P149: -145
A150: 400х80х50 | B150: -146 | C150: 1 | E150: 0 | G150: 0 | K150: 0 | L150: 776.25 | M150: -146 | N150: -146 | P150: -146
A151: Пильные Diamant ламинат | B151: -147 | C151: 1 | E151: 0 | G151: 0 | K151: 0 | L151: 0 | M151: -147 | N151: -147 | P151: -147
A152: 200х48х30 | B152: -148 | C152: 1 | E152: 0 | G152: 0 | K152: 0 | L152: 190.9 | M152: -148 | N152: -148 | P152: -148
A153: 200х56х30 | B153: -145 | C153: 1 | E153: 0 | G153: 0 | K153: 0 | L153: 198.95 | M153: -145 | N153: -145 | P153: -145
A154: 200х24х32 | B154: -146 | C154: 1 | E154: 0 | G154: 0 | K154: 0 | L154: 159.85 | M154: -146 | N154: -146 | P154: -146
A155: 200х48х32 | B155: -151 | C155: 1 | E155: 0 | G155: 0 | K155: 0 | L155: 190.9 | M155: -151 | N155: -151 | P155: -151
A156: 250х40х32 | B156: -152 | C156: 1 | E156: 0 | G156: 0 | K156: 0 | L156: 290.95 | M156: -152 | N156: -152 | P156: -152
A157: 250х60х32 | B157: -153 | C157: 1 | E157: 0 | G157: 0 | K157: 0 | L157: 317.4 | M157: -153 | N157: -153 | P157: -153
A158: 250х80х32 | B158: -154 | C158: 1 | E158: 0 | G158: 0 | K158: 0 | L158: 425.5 | M158: -154 | N158: -154 | P158: -154
A159: Пильные Russland | B159: -155 | C159: 1 | E159: 0 | G159: 0 | K159: 0 | L159: 0 | M159: -155 | N159: -155 | P159: -155
A160: 150х40х32 | B160: -152 | C160: 1 | E160: 0 | G160: 0 | K160: 0 | L160: 106.95 | M160: -152 | N160: =B160*C160 -> -152 | P160: -152
A161: 160х24х32 | B161: -153 | C161: 1 | E161: 0 | G161: 0 | K161: 0 | L161: 104.65 | M161: -153 | N161: =B161*C161 -> -153 | P161: -153
A162: 160х48х32 | B162: -154 | C162: 1 | E162: 0 | G162: 0 | K162: 0 | L162: 115 | M162: -154 | N162: =B162*C162 -> -154 | P162: -154
A163: 180х24х32 | B163: -155 | C163: 1 | E163: 0 | G163: 0 | K163: 0 | L163: 111.55 | M163: -155 | N163: =B163*C163 -> -155 | P163: -155
A164: 180х48х32 | B164: -156 | C164: 1 | E164: 0 | G164: 0 | K164: 0 | L164: 132.25 | M164: -156 | N164: =B164*C164 -> -156 | P164: -156
A165: 200х24х30 | B165: -157 | C165: 1 | E165: 0 | G165: 0 | K165: 0 | L165: 123.05 | M165: -157 | N165: -157 | P165: -157
A166: 200х48х30 | B166: -158 | C166: 1 | E166: 0 | G166: 0 | K166: 0 | L166: 148.35 | M166: -158 | N166: -158 | P166: -158
A167: 200х24х32 | B167: -159 | C167: 1 | E167: 0 | G167: 0 | K167: 0 | L167: 123.05 | M167: -159 | N167: -159 | P167: -159
A168: 200х36х32 | B168: -160 | C168: 1 | E168: 0 | G168: 0 | K168: 0 | L168: 139.15 | M168: -160 | N168: -160 | P168: -160
A169: 200х48х32 | B169: -161 | C169: 1 | E169: 0 | G169: 0 | K169: 0 | L169: 148.35 | M169: -161 | N169: -161 | P169: -161
A170: 200х60х32 | B170: -162 | C170: 1 | E170: 0 | G170: 0 | K170: 0 | L170: 169.05 | M170: -162 | N170: -162 | P170: -162
A171: 250х24х32 | B171: -163 | C171: 1 | E171: 0 | G171: 0 | K171: 0 | L171: 165.6 | M171: -163 | N171: -163 | P171: -163
A172: 250х36х32 | B172: -164 | C172: 1 | E172: 0 | G172: 0 | K172: 0 | L172: 185.15 | M172: -164 | N172: -164 | P172: -164
A173: 250х48х32 | B173: -169 | C173: 1 | E173: 0 | G173: 0 | K173: 0 | L173: 205.85 | M173: -169 | N173: -169 | P173: -169
A174: 250х60х32 | B174: -166 | C174: 1 | E174: 0 | G174: 0 | K174: 0 | L174: 226.55 | M174: -166 | N174: -166 | P174: -166
A175: 250х80х32 | B175: -167 | C175: 1 | E175: 0 | G175: 0 | K175: 0 | L175: 274.85 | M175: -167 | N175: -167 | P175: -167
A176: 300х32х32 | B176: -168 | C176: 1 | E176: 0 | G176: 0 | K176: =F176*(L176-E176)/2 -> 0 | L176: 263.35 | M176: -168 | N176: -168 | P176: -168
A177: 300х48х32 | B177: -169 | C177: 1 | E177: 0 | G177: 0 | K177: 0 | L177: 280.6 | M177: -169 | N177: -169 | P177: -169
A178: 300х60х32 | B178: -170 | C178: 1 | E178: 0 | G178: 0 | K178: 0 | L178: 308.2 | M178: -170 | N178: -170 | P178: -170
A179: 350х40х50 | B179: -171 | C179: 1 | E179: 0 | G179: 0 | K179: 0 | L179: 403.65 | M179: -171 | N179: =B179*C179 -> -171 | P179: -171
A180: 350х60х50 | B180: -172 | C180: 1 | E180: 0 | G180: 0 | K180: 0 | L180: 448.5 | M180: -172 | N180: -172 | P180: -172
A181: 350х80х50 | B181: -173 | C181: 1 | E181: 0 | G181: 0 | K181: 0 | L181: 493.35 | M181: -173 | N181: -173 | P181: -173
A182: 400х40х50 | B182: -174 | C182: 1 | E182: 0 | G182: 0 | K182: 0 | L182: 642.85 | M182: -174 | N182: -174 | P182: -174
A183: 400х60х50 | B183: -175 | C183: 1 | E183: 0 | G183: 0 | K183: 0 | L183: 698.05 | M183: -175 | N183: -175 | P183: -175
A184: 400х80х50 | B184: -176 | C184: 1 | E184: 0 | G184: 0 | K184: 0 | L184: 760.15 | M184: -176 | N184: -176 | P184: -176
A185: Пильные Russland для УШМ | B185: -181 | C185: 1 | E185: 0 | G185: 0 | K185: 0 | L185: 0 | M185: -181 | N185: =B185*C185 -> -181 | P185: -181
A186: 115х40х22 | B186: -178 | C186: 1 | E186: 0 | G186: 0 | K186: 0 | L186: 77.05 | M186: -178 | N186: =B186*C186 -> -178 | P186: -178
A187: 125х24х22 | B187: -179 | C187: 1 | E187: 0 | G187: 0 | K187: 0 | L187: 69 | M187: -179 | N187: =B187*C187 -> -179 | P187: -179
A188: 125х40х22 | B188: -180 | C188: 1 | E188: 0 | G188: 0 | K188: 0 | L188: 82.8 | M188: -180 | N188: =B188*C188 -> -180 | P188: -180
A189: 150х40х22 | B189: -185 | C189: 1 | E189: 0 | G189: 0 | K189: 0 | L189: 106.95 | M189: -185 | N189: -185 | P189: -185
A190: 160х24х22 | B190: -186 | C190: 1 | E190: 0 | G190: 0 | K190: 0 | L190: 104.65 | M190: -186 | N190: -186 | P190: -186
A191: 160х48х22 | B191: -183 | C191: 1 | E191: 0 | G191: 0 | K191: 0 | L191: 115 | M191: -183 | N191: -183 | P191: -183
A192: 180х24х22 | B192: -184 | C192: 1 | E192: 0 | G192: 0 | K192: 0 | L192: 111.55 | M192: -184 | N192: -184 | P192: -184
A193: 180х48х22 | B193: -185 | C193: 1 | E193: 0 | G193: 0 | K193: 0 | L193: 132.25 | M193: -185 | N193: -185 | P193: -185
A194: 230x40x22 | B194: -186 | C194: 1 | E194: 0 | G194: 0 | K194: 0 | L194: 167.9 | M194: -186 | N194: =B194*C194 -> -186 | P194: -186
A195: Russland Пильный для УШМ по ламинату | B195: -191 | C195: 1 | E195: 0 | G195: 0 | K195: 0 | L195: 0 | M195: -191 | N195: =B195*C195 -> -191 | P195: -191
A196: 115х40х22MF (лам) | B196: -192 | C196: 1 | E196: 0 | G196: 0 | K196: 0 | L196: 89.7 | M196: -192 | N196: =B196*C196 -> -192 | P196: -192
A197: 125х40х22MF (лам) | B197: -193 | C197: 1 | E197: 0 | G197: =F197*C197 -> 0 | K197: 0 | L197: 93.15 | M197: -193 | N197: =B197*C197 -> -193 | P197: -193
A198: Пильные Russland ламинат | B198: -194 | C198: 1 | E198: =C198*$B$3 -> 0 | G198: 0 | K198: 0 | L198: 0 | M198: =B198-F198 -> -194 | N198: -194 | P198: =M198+O198 -> -194
A199: 200x24x30MF (лам) | B199: -195 | C199: 1 | E199: 0 | G199: 0 | K199: 0 | L199: 164.45 | M199: -195 | N199: -195 | P199: -195
A200: 200x48x30MF (лам) | B200: -196 | C200: 1 | E200: 0 | G200: 0 | K200: 0 | L200: 185.15 | M200: -196 | N200: -196 | P200: -196
... 95 more rows
